bitfinex-derivatives/quotes_ETHF0:USTF0_20251126
["timestamp","ask_amount","ask_price","bid_price","bid_amount"]
[1764142888743,1.70097429,2939.4,2939.3,0.47240001]
[1764142889041,2.91530427,2939.4,2939.3,0.47240001]
[1764142889441,2.09653013,2939.4,2939.3,0.47240001]
[1764142889645,1.79304372,2939.4,2939.3,0.47240001]
[1764142889841,2.44163786,2939.4,2939.3,0.47240001]
[1764142890039,0.64859414,2939.4,2939.3,0.47240001]
[1764142890337,1.55948767,2939.4,2939.3,0.47240001]
[1764142890534,1.5296399,2939.4,2939.3,0.47240001]
[1764142893159,2.44053343,2939.4,2939.3,0.47240001]
[1764142895254,2.44053343,2939.4,2939.3,1e-08]
[1764142895455,2.74396988,2939.4,2939.3,1e-08]
[1764142899055,1.5296399,2939.4,2939.3,1e-08]
[1764142899259,3.52197763,2939.4,2939.3,1e-08]
[1764142901259,1.6998199,2939.4,2939.3,1e-08]
[1764142902454,0.17019,2939.1,2939.0,0.00332424]
[1764142902758,3.28978771,2939.1,2939.0,0.00332424]
[1764142902961,4.17083347,2939.1,2939.0,0.00332424]
[1764142903460,2.34842404,2939.1,2939.0,0.00332424]
[1764142904657,1.6998299,2939.1,2939.0,0.00332424]
[1764142904862,3.52216585,2939.1,2939.0,0.29962424]
[1764142905760,3.52216585,2939.1,2939.0,0.78092424]
[1764142906256,2.87357171,2939.1,2939.0,0.78092424]
[1764142906556,3.52216585,2939.1,2939.0,0.78092424]
[1764142907562,2.34842404,2939.1,2938.5,0.2798]
[1764142907766,0.64859414,2938.6,2938.5,0.7611]
[1764142908260,0.88104576,2938.6,2938.5,0.7611]
[1764142908661,0.88499205,2938.6,2938.5,0.76353196]
[1764142909758,1.53358619,2938.6,2938.5,0.28223196]
[1764142909958,1.53358619,2938.6,2938.5,0.76353196]
[1764142916972,1.53358619,2938.6,2938.5,0.28223196]
[1764142917771,1.55358619,2938.6,2938.0,0.2893]
[1764142917971,0.66859414,2938.3,2938.2,0.4813]
[1764142918771,0.66859414,2938.3,2938.2,0.48408399]
[1764142918974,0.19024,2938.3,2938.2,0.48408399]
[1764142919270,0.83883414,2938.3,2938.2,0.48408399]
[1764142919467,1.71991787,2938.3,2938.2,0.48408399]
[1764142919868,1.71991787,2938.3,2938.2,0.00278399]
[1764142920268,2.63106577,2938.3,2938.2,0.00278399]
[1764142920465,1.71991787,2938.3,2938.2,0.00278399]
[1764142920870,1.71991787,2938.3,2937.5,0.2822]
[1764142921172,0.66859414,2937.7,2937.6,0.4813]
[1764142921874,0.66859414,2937.7,2937.6,0.48493966]
[1764142922272,0.66859414,2937.7,2937.6,0.00363966]
[1764142922574,0.66859414,2937.7,2937.6,0.48253966]
[1764142922877,1.52923674,2937.7,2937.6,0.48253966]
[1764142923579,0.8806426,2937.7,2937.6,0.48253966]
[1764142924678,1.52923674,2937.7,2937.6,0.48253966]
[1764142926172,0.9003426,2937.7,2937.6,0.00363966]
[1764142926367,0.0197,2937.7,2937.6,0.00363966]
[1764142926580,1.53282273,2937.7,2937.6,0.00363966]
[1764142928979,0.89949646,2937.7,2937.6,0.00363966]
[1764142929182,0.89949646,2937.7,2937.6,0.46613966]
[1764142929484,1.53282273,2937.7,2937.6,0.46613966]
[1764142929879,1.53282273,2937.7,2937.6,0.00363966]
[1764142931682,0.65302627,2937.7,2937.6,0.00363966]
[1764142932784,0.0197,2937.7,2937.6,0.00363966]
[1764142933180,0.8990488,2937.7,2937.6,0.00363966]
[1764142937087,1.80696977,2937.7,2937.6,0.00363966]
[1764142937287,0.18704,2936.6,2936.5,0.281]
[1764142937488,0.82036627,2936.6,2936.5,0.281]
[1764142937794,1.52849873,2936.6,2936.5,0.7435]
[1764142937986,1.52849873,2936.6,2936.5,0.281]
[1764142938189,1.52849873,2936.6,2936.5,0.28524466]
[1764142938780,1.52849873,2936.6,2936.5,0.74774466]
[1764142939185,1.52849873,2936.6,2936.5,0.28524466]
[1764142939383,0.0167,2936.6,2936.5,0.74774466]
[1764142939587,0.90727875,2937.3,2937.0,0.7435]
[1764142939793,0.87752375,2937.2,2937.1,0.4625]
[1764142939994,0.0167,2937.2,2937.1,0.4625]
[1764142940209,0.63332627,2937.5,2937.1,0.4625]
[1764142940491,0.87765927,2937.4,2937.3,0.4625]
[1764142940795,0.63332627,2937.5,2937.4,0.4625]
[1764142941087,0.65002627,2937.5,2937.4,0.4625]
[1764142941793,0.63332627,2937.5,2937.4,0.4625]
[1764142943297,0.65002627,2937.9,2937.8,0.4625]
[1764142943497,1.52847009,2937.9,2937.8,0.4625]
[1764142943698,1.52847009,2937.9,2937.5,0.281]
[1764142943997,0.87844382,2937.8,2937.5,0.281]
[1764142949094,2.41904884,2937.9,2937.5,0.281]
[1764142949295,0.87844382,2937.8,2937.5,0.281]
[1764142949896,0.89514382,2937.8,2937.7,0.4625]
[1764142950803,0.89514382,2937.8,2937.5,0.281]
[1764142951003,0.89514382,2937.7,2937.6,0.4625]
[1764142953801,0.89514382,2937.7,2937.5,0.281]
[1764142953999,1.52847009,2937.6,2937.5,0.281]
[1764142956815,1.52847009,2937.6,2937.0,0.281]
[1764142957111,0.87844382,2937.5,2937.0,0.281]
[1764142958715,1.78572257,2937.5,2937.0,0.281]
[1764142959611,0.0165,2937.1,2937.0,0.7648]
[1764142959813,0.89789351,2937.1,2937.0,0.281]
[1764142960410,0.88139351,2937.1,2937.0,0.7648]
[1764142960715,0.90727875,2937.4,2937.3,0.4838]
[1764142960916,0.92377875,2937.4,2937.3,0.4838]
[1764142961217,1.80511818,2937.4,2937.3,0.4838]
[1764142963312,0.88133943,2937.4,2937.3,0.4838]
[1764142964420,0.17027,2937.8,2937.7,0.4838]
[1764142964818,1.05204348,2937.8,2937.7,0.4838]
[1764142965021,0.88177348,2937.8,2937.7,0.4838]
[1764142965219,0.92377875,2938.0,2937.9,0.4838]
[1764142965419,1.80550863,2938.0,2937.9,0.4838]
[1764142966423,0.89822988,2938.0,2937.9,0.4838]
[1764142966923,0.88172988,2938.0,2937.9,0.4838]
[1764142967716,0.00510273,2938.2,2938.1,0.4838]
[1764142967922,0.88703346,2938.2,2938.1,0.4838]
[1764142970019,0.00394629,2938.6,2938.5,0.7545]
[1764142973621,0.02554629,2938.6,2938.5,0.2707]
[1764142974116,0.90673618,2938.6,2938.5,0.2707]
[1764142974722,0.90673618,2938.6,2938.5,0.7545]
[1764142975028,0.00394629,2938.6,2938.5,0.7545]
[1764142979332,1e-08,2938.8,2938.5,0.7545]
[1764142979830,0.02160001,2938.8,2938.7,0.4838]
[1764142980418,0.02398923,2938.8,2938.7,0.00288132]
[1764142981426,0.0216,2938.4,2938.3,0.00510273]
[1764142981631,0.0216,2937.6,2937.5,0.2707]
[1764142981829,0.0216,2937.1,2937.0,0.281]
[1764142982029,0.65492627,2937.1,2936.5,0.2707]
[1764142982230,0.65492627,2936.6,2936.5,0.7201]
[1764142982427,0.65492627,2936.6,2936.5,0.27442688]
[1764142982630,0.6574287,2936.6,2936.5,0.72382688]
[1764142983132,0.00250243,2936.6,2936.5,0.72382688]
[1764142983320,0.02410243,2936.6,2936.5,0.72382688]
[1764142984234,0.02410243,2936.6,2936.5,0.27442688]
[1764142984635,0.6574287,2936.6,2936.5,0.00372688]
[1764142985934,0.6574287,2936.6,2936.5,0.27602688]
[1764142986531,0.02410243,2936.6,2936.5,0.27602688]
[1764142988738,0.00250243,2936.6,2936.5,0.75402688]
[1764142989039,0.02500243,2936.6,2936.5,0.75402688]
[1764142989441,0.00250243,2936.6,2936.5,0.75402688]
[1764142990440,0.02500243,2936.6,2936.5,0.75402688]
[1764142991139,0.00250243,2936.6,2936.5,0.75402688]
[1764142993940,0.00510273,2936.8,2936.7,0.478]
[1764142994440,0.03010273,2936.8,2936.5,0.27602688]
[1764142994830,0.03435639,2936.8,2936.7,0.478]
[1764142995036,0.00935639,2936.8,2936.7,0.478]
[1764142997834,0.03435639,2936.8,2936.7,0.478]
[1764142998941,0.00935639,2936.8,2936.7,0.478]
[1764142999439,0.025,2936.6,2936.5,0.75402688]
[1764142999840,0.00935639,2936.8,2936.5,0.75402688]
[1764143000027,0.00935639,2936.8,2936.7,0.478]
[1764143002240,0.0343,2937.6,2937.5,0.2723]
[1764143002837,0.91098677,2937.6,2937.5,0.2723]
[1764143003137,0.0343,2937.1,2937.0,0.7503]
[1764143004141,0.0343,2937.1,2937.0,0.2723]
[1764143006142,0.0343,2937.1,2937.0,0.7503]
[1764143006347,0.2046,2937.3,2937.2,0.478]
[1764143006541,0.0343,2937.1,2937.0,0.7503]
[1764143006750,0.91301665,2937.1,2937.0,0.7503]
[1764143007248,1.56286686,2937.1,2937.0,0.7503]
[1764143008248,1.52856686,2937.1,2937.0,0.7503]
[1764143009147,1.53079175,2937.1,2937.0,0.7503]
[1764143011347,3.3466337,2937.1,2937.0,0.7503]
[1764143011654,3.3809337,2937.1,2937.0,0.7503]
[1764143012852,3.3809337,2937.1,2937.0,0.2723]
[1764143015541,0.0345,2936.6,2936.5,0.27602688]
[1764143015748,1.59519476,2936.6,2936.5,0.75312688]
[1764143016052,2.4416363,2936.6,2936.5,0.75312688]
[1764143017849,1.79178609,2936.6,2936.5,0.75312688]
[1764143018049,1.86430962,2936.8,2936.7,0.4771]
[1764143019049,0.64985021,2936.8,2936.7,0.4771]
[1764143019352,1.21445941,2936.8,2936.7,0.4771]
[1764143020053,1.86430962,2936.9,2936.8,0.4771]
[1764143020350,1.82168911,2937.0,2936.9,0.4771]
[1764143020554,2.47153932,2937.1,2937.0,0.7558]
[1764143020852,1.21549306,2937.1,2937.0,0.7558]
[1764143021053,1.86534327,2937.3,2937.2,0.4771]
[1764143021553,1.21549306,2937.3,2937.2,0.4771]
[1764143022160,1.21549306,2937.4,2937.3,0.4771]
[1764143024358,1.86534327,2937.5,2937.4,0.4771]
[1764143025353,2.34974327,2937.5,2937.4,0.4771]
[1764143025559,2.62574327,2937.5,2937.0,0.2787]
[1764143025760,0.64985021,2937.2,2937.0,0.2787]
[1764143025959,0.64985021,2937.2,2937.1,0.4771]
[1764143026356,1.13425021,2937.2,2937.1,0.4771]
[1764143026554,1.13425021,2937.2,2936.5,0.27602688]
[1764143026760,0.64985021,2936.8,2936.7,0.4771]
[1764143027059,0.4844,2937.1,2937.0,0.4771]
[1764143027360,1.13425021,2937.1,2936.5,0.27602688]
[1764143027662,1.13425021,2936.7,2936.6,0.4771]
[1764143027855,0.64985021,2936.7,2936.6,0.4771]
[1764143029959,1.13425021,2936.7,2936.6,0.4771]
[1764143030157,2.01140471,2936.7,2936.6,0.4771]
[1764143030860,1.52700471,2936.7,2936.6,0.4771]
[1764143031556,0.8771545,2936.7,2936.6,0.4771]
[1764143033664,1.21549306,2937.2,2937.1,0.4771]
[1764143033861,0.00285699,2937.6,2937.5,0.4771]
[1764143033862,1.70275005,2937.6,2937.5,0.4771]
[1764143034158,0.48725699,2937.6,2937.5,0.7558]
[1764143034760,0.48725699,2937.6,2937.5,0.4771]
[1764143036465,0.48725699,2937.6,2937.5,0.7558]
[1764143036650,0.00285699,2937.6,2937.5,0.7558]
[1764143037956,0.4844,2937.6,2937.5,0.7558]
[1764143038160,0.4844,2937.6,2937.5,0.4771]
[1764143038965,0.48734234,2937.6,2937.5,0.4771]
[1764143039864,0.48734234,2937.6,2937.5,0.7558]
[1764143040059,0.00294234,2937.6,2937.5,0.7558]
[1764143041457,0.00510273,2937.8,2937.7,0.4771]
[1764143042462,0.00890355,2937.8,2937.7,0.4771]
[1764143047669,0.4604,2938.7,2938.6,0.4486]
[1764143047870,1.33189609,2938.7,2938.6,0.4486]
[1764143048668,1.33525645,2938.7,2938.6,0.45121808]
[1764143051566,1.33525645,2938.7,2938.6,0.00261808]
[1764143054074,1.33525645,2938.7,2938.6,0.45121808]
[1764143054266,0.46376036,2938.7,2938.6,0.45121808]
[1764143055174,0.46376036,2938.7,2938.6,0.00261808]
[1764143056377,0.46376036,2938.7,2938.6,0.45121808]
[1764143059078,0.46376036,2938.7,2938.6,0.00261808]
[1764143059876,0.46376036,2938.7,2938.6,0.45121808]
[1764143060174,1.33394373,2938.7,2938.6,0.45121808]
[1764143060369,0.46376036,2938.7,2938.6,0.45121808]
[1764143064077,0.00336036,2938.7,2938.6,0.45121808]
[1764143064680,0.46376036,2938.7,2938.6,0.45121808]
[1764143064879,0.00336036,2938.7,2938.6,0.45121808]
[1764143065087,0.46376036,2938.7,2938.6,0.45121808]
[1764143071387,1.33538524,2938.7,2938.6,0.45121808]
[1764143078887,1.33538524,2938.7,2938.6,0.00261808]
[1764143079095,2.24753369,2938.7,2938.6,0.00261808]
[1764143079891,2.24753369,2938.7,2938.6,0.45971808]
[1764143086109,2.24753369,2938.7,2938.6,0.00261808]
[1764143092607,2.24753369,2938.7,2938.6,0.45971808]
[1764143094109,2.24753369,2938.7,2938.6,0.00261808]
[1764143095208,1.33538524,2938.7,2938.6,0.00261808]
[1764143104117,0.87498524,2938.7,2938.6,0.45971808]
[1764143104414,1.3957011,2938.7,2938.6,0.45971808]
[1764143104612,2.26732598,2938.7,2938.6,0.45971808]
[1764143107016,2.28002598,2938.7,2938.6,0.00261808]
[1764143111015,2.28002598,2938.7,2937.6,2.44765221]
[1764143111016,0.4913,2937.7,2937.6,2.44765221]
[1764143111221,1.36292488,2937.7,2937.6,0.4848]
[1764143112027,2.01184457,2937.7,2937.6,0.00298203]
[1764143114120,2.01184457,2937.7,2937.4,0.00510273]
[1764143114121,0.776,2937.5,2937.4,0.00510273]
[1764143114417,0.776,2937.5,2937.4,0.4848]
[1764143115211,0.776,2937.5,2937.4,0.48727949]
[1764143115418,0.4913,2937.5,2937.4,0.48727949]
[1764143116418,0.4913,2937.9,2937.8,0.4848]
[1764143116723,1.36243703,2937.9,2937.8,0.4848]
[1764143116920,2.01135672,2937.9,2937.5,0.2951]
[1764143117118,1.36243703,2937.8,2937.7,0.4848]
[1764143118723,0.4913,2938.1,2938.0,0.4848]
[1764143119224,1.36195144,2938.1,2938.0,0.4848]
[1764143120616,0.4913,2938.1,2938.0,0.7799]
[1764143121428,0.2847,2938.0,2937.5,0.2951]
[1764143121818,0.776,2938.0,2937.9,0.4848]
[1764143123426,0.4913,2937.6,2937.5,0.4848]
[1764143123926,0.2847,2938.0,2937.5,0.7799]
[1764143125028,0.4913,2937.6,2937.5,0.4848]
[1764143125218,0.776,2937.5,2937.4,0.48727949]
[1764143125621,0.4913,2937.5,2937.4,0.48727949]
[1764143129036,0.64891969,2937.9,2937.5,0.2951]
[1764143129347,0.776,2938.0,2937.5,0.2951]
[1764143129632,1.36125635,2937.9,2937.8,0.4848]
[1764143131032,0.4913,2937.9,2937.8,0.4848]
[1764143131330,0.64891969,2938.2,2937.8,0.4848]
[1764143131534,0.4913,2937.9,2937.8,0.4848]
[1764143132935,0.4913,2937.9,2937.5,0.2951]
[1764143133337,0.4913,2937.9,2937.8,0.4848]
[1764143133632,0.4913,2937.6,2937.5,0.4848]
[1764143133837,0.776,2937.5,2937.4,0.00247949]
[1764143134040,0.776,2937.5,2937.4,0.48727949]
[1764143134239,0.4913,2937.5,2937.4,0.48727949]
[1764143134938,0.2847,2938.0,2937.5,0.2912]
[1764143135138,0.87020068,2937.9,2937.5,0.2912]
[1764143135439,0.2847,2938.0,2937.5,0.2912]
[1764143135639,0.87038122,2937.9,2937.5,0.2912]
[1764143135841,0.2847,2938.0,2937.5,0.2912]
[1764143136038,1.32702704,2937.9,2937.8,0.4819]
[1764143137338,0.87022704,2937.9,2937.8,0.4819]
[1764143137742,1.32702704,2937.9,2937.8,0.4819]
[1764143138440,1.32702704,2937.9,2937.5,0.2912]
[1764143138642,0.4568,2937.6,2937.5,0.7731]
[1764143140241,1.32910342,2937.6,2937.5,0.7731]
[1764143140444,0.4568,2937.6,2937.5,0.7731]
[1764143142936,0.4568,2937.6,2937.5,0.4819]
[1764143143340,1.32598203,2937.6,2937.5,0.4819]
[1764143144945,0.86918203,2937.6,2937.5,0.7731]
[1764143145144,0.4568,2937.8,2937.7,0.4819]
[1764143145344,1.32600213,2937.8,2937.7,0.4819]
[1764143148951,0.86920213,2937.8,2937.7,0.4819]
[1764143149249,1.37061278,2938.0,2937.9,0.4819]
[1764143149452,2.23979237,2938.0,2937.9,0.4819]
[1764143150855,1.32597959,2938.0,2937.9,0.4819]
[1764143151054,1.59877959,2938.0,2937.9,0.4819]
[1764143151656,1.59877959,2938.0,2937.5,0.2912]
[1764143151858,0.86917959,2937.9,2937.5,0.2912]
[1764143152552,1.32597959,2937.9,2937.8,0.4819]
[1764143158356,0.4568,2937.6,2937.5,0.4819]
[1764143158654,0.7296,2937.5,2937.4,0.00247949]
[1764143158855,0.7296,2937.5,2937.4,0.48437949]
[1764143160454,1.37851969,2937.5,2937.4,0.00247949]
[1764143160755,0.4568,2937.3,2937.2,0.00510273]
[1764143160956,1.10571969,2937.3,2937.2,0.00510273]
[1764143161258,1.32637913,2937.3,2937.2,0.00510273]
[1764143161653,1.32637913,2937.3,2937.2,0.0080597]
[1764143169759,1.97529882,2937.3,2937.2,0.0080597]
[1764143170664,1.32637913,2937.3,2937.2,0.0080597]
[1764143174468,1.32637913,2937.3,2936.3,3.46169559]
[1764143174670,0.63337781,2937.1,2936.3,1.89]
[1764143174968,0.4754,2936.4,2936.3,2.3535]
[1764143175560,0.47834209,2936.4,2936.3,2.3563355]
[1764143177170,0.00294209,2936.4,2936.3,2.3563355]
[1764143180974,0.00294209,2936.4,2936.3,3.8962923]
[1764143182070,0.47834209,2936.4,2936.3,2.3563355]
[1764143183564,0.00294209,2936.4,2936.3,2.3563355]
[1764143191986,0.00510273,2936.6,2936.5,0.761]
[1764143192580,0.00510273,2936.6,2936.5,1.39437781]
[1764143193076,0.00908364,2936.6,2936.5,1.39437781]
[1764143193582,0.00908364,2936.6,2936.5,0.761]
[1764143193983,0.48448364,2936.6,2936.5,0.4635]
[1764143194479,0.4754,2936.4,2936.3,2.3563355]
[1764143195178,0.46848364,2936.6,2936.5,0.4975]
[1764143195984,0.4594,2936.4,2936.3,2.3903355]
[1764143196180,0.00908364,2936.6,2936.3,2.3903355]
[1764143196377,0.46848364,2936.6,2936.5,0.4975]
[1764143196874,0.46848364,2936.6,2936.3,2.3903355]
[1764143196875,0.4594,2936.4,2936.3,2.3903355]
[1764143199288,0.46848364,2936.6,2936.5,0.4975]
[1764143200885,0.00908364,2936.6,2936.5,0.7902]
[1764143201387,0.46848364,2936.6,2936.5,0.7902]
[1764143201884,0.46848364,2936.6,2936.5,0.4975]
[1764143204187,1.33731114,2936.6,2936.5,0.4975]
[1764143213496,0.4594,2936.4,2936.3,2.3903355]
[1764143215191,0.00908364,2936.6,2936.5,0.7902]
[1764143215394,0.46848364,2936.6,2936.5,0.4975]
[1764143219999,0.00908364,2936.6,2936.5,0.7902]
[1764143221401,1.37321278,2937.0,2936.9,0.4975]
[1764143221590,0.86734104,2937.0,2936.9,0.4975]
[1764143221796,0.4594,2937.3,2937.2,0.4975]
[1764143222497,1.3305688,2937.3,2937.2,0.4975]
[1764143222792,0.8711688,2937.3,2937.2,0.4975]
[1764143223191,0.0037701,2937.3,2937.2,0.4975]
[1764143224998,1.18661278,2938.0,2937.8,0.4823]
[1764143225198,0.7679,2938.0,2937.9,0.4823]
[1764143225402,1.36104454,2938.0,2937.9,0.4823]
[1764143225891,0.4951,2938.3,2938.2,0.4823]
[1764143226287,1.36395531,2938.3,2938.2,0.4823]
[1764143227202,0.49790149,2938.3,2938.2,0.4823]
[1764143233401,0.279,2938.0,2937.5,0.2943]
[1764143233597,0.00280149,2938.3,2937.9,0.4823]
[1764143233799,0.00280149,2938.3,2938.0,0.2943]
[1764143234392,0.4951,2938.1,2938.0,0.2943]
[1764143234610,0.49790149,2938.3,2938.2,0.4823]
[1764143236208,0.4951,2938.1,2938.0,0.4823]
[1764143237003,0.4951,2938.1,2937.5,0.2943]
[1764143237211,0.92800938,2938.0,2937.5,0.2943]
[1764143237401,0.279,2938.0,2937.5,0.2943]
[1764143238296,0.279,2938.0,2937.9,0.4823]
[1764143238502,0.7741,2938.0,2937.9,0.4823]
[1764143240910,0.7741,2938.0,2937.5,0.94330938]
[1764143241306,0.4951,2938.0,2937.9,0.4823]
[1764143241608,0.7741,2938.0,2937.9,0.4823]
[1764143243905,0.00280149,2938.3,2937.9,0.4823]
[1764143244408,0.4951,2938.0,2937.9,0.4823]
[1764143247806,0.4951,2937.7,2937.6,1.55611487]
[1764143249420,1.14410938,2937.7,2937.0,0.29780273]
[1764143256630,0.4951,2937.7,2937.1,0.64900938]
[1764143258232,1.19281278,2938.0,2937.6,0.4823]
[1764143258536,0.4607,2937.7,2937.6,0.4823]
[1764143258930,1.32664794,2937.7,2937.6,0.4823]
[1764143260640,0.4607,2937.4,2937.3,0.4872]
[1764143261335,0.64900938,2937.9,2937.3,0.4872]
[1764143261536,0.8661402,2937.8,2937.3,0.4872]
[1764143261841,1.3268402,2937.7,2937.6,0.4872]
[1764143264038,1.3268402,2937.7,2937.0,0.29780273]
[1764143264337,0.4607,2937.7,2937.0,0.94681211]
[1764143268042,0.4607,2937.7,2937.2,0.64900938]
[1764143268941,0.4607,2937.7,2937.6,0.4872]
[1764143269340,1.3274286,2937.7,2937.2,0.64900938]
[1764143269639,0.86675247,2937.6,2937.0,0.29780273]
[1764143269845,0.4607,2937.1,2937.0,0.49230273]
[1764143270750,0.2905,2937.5,2937.0,0.76530273]
[1764143271038,0.86669378,2937.4,2937.0,0.76530273]
[1764143271237,0.2905,2937.5,2937.0,0.76530273]
[1764143271438,1.32733529,2937.4,2937.3,0.4872]
[1764143274047,0.91381278,2937.8,2937.3,0.4872]
[1764143274243,1.32728791,2937.7,2937.6,0.4872]
[1764143274946,0.4607,2937.9,2937.8,0.4872]
[1764143275652,1.3272679,2937.9,2937.8,0.4872]
[1764143276538,0.8665679,2937.9,2937.8,1.13620938]
[1764143276743,1.22121853,2938.3,2937.8,1.13620938]
[1764143276744,0.46350149,2938.3,2938.2,0.4872]
[1764143277045,1.33026231,2938.3,2938.2,0.4872]
[1764143281149,1.33026231,2938.3,2938.0,0.273]
[1764143281150,0.4607,2938.1,2937.5,0.273]
[1764143281450,0.46350149,2938.3,2938.2,0.4872]
[1764143281643,1.32955322,2938.3,2938.2,0.4872]
[1764143283747,0.00280149,2938.3,2938.2,1.13620938]
[1764143283941,0.00280149,2938.3,2938.2,0.4872]
[1764143284850,0.49900149,2938.3,2938.2,0.4872]
[1764143288354,0.00280149,2938.3,2938.2,0.4872]
[1764143288757,0.48840149,2938.3,2938.2,0.4872]
[1764143293551,0.4856,2938.1,2938.0,0.7233]
[1764143294152,0.48840149,2938.3,2938.2,0.4503]
[1764143298159,0.00280149,2938.3,2938.2,0.4503]
[1764143298853,0.48840149,2938.3,2938.2,0.4503]
[1764143299652,0.00280149,2938.3,2938.2,0.4503]
[1764143302658,1.85112039,2939.3,2938.0,0.273]
[1764143302659,0.91381278,2939.2,2938.5,0.2978]
[1764143302854,0.91381278,2939.2,2938.5,0.7481]
[1764143302855,0.2708,2939.0,2938.5,0.7481]
[1764143303765,0.4856,2938.6,2938.5,0.45891014]
[1764143307267,0.4856,2937.7,2937.6,0.4503]
[1764143307462,0.4856,2937.7,2937.1,3.97745749]
[1764143307759,0.4856,2937.7,2937.0,4.96265221]
[1764143308171,0.4856,2937.7,2937.1,0.00510273]
[1764143309355,0.4856,2937.7,2937.2,0.63270335]
[1764143309555,0.1968,2938.0,2937.1,0.00510273]
[1764143309556,0.1968,2938.0,2937.6,0.4503]
[1764143310260,0.4856,2937.7,2937.6,0.4503]
[1764143310462,0.4856,2937.7,2937.1,0.00510273]
[1764143310969,0.4856,2937.7,2937.6,0.4503]
[1764143311156,0.1968,2938.0,2937.6,0.4503]
[1764143311361,1.35366547,2937.9,2937.8,0.4503]
[1764143311562,0.4856,2937.6,2937.5,0.7481]
[1764143312066,0.1968,2938.0,2937.5,0.7481]
[1764143312268,1.35394238,2937.9,2937.8,0.4503]
[1764143312863,0.4856,2938.3,2938.2,0.4503]
[1764143315468,0.4856,2938.1,2938.0,0.4829]
[1764143315871,0.1968,2938.5,2938.0,0.7609]
[1764143317566,0.4884,2938.1,2938.0,0.4829]
[1764143317972,0.1968,2938.5,2938.0,0.7609]
[1764143319264,0.4884,2938.1,2938.0,0.7609]
[1764143321070,0.4884,2938.1,2938.0,0.4829]
[1764143321367,0.2703,2938.0,2937.5,0.2978]
[1764143321570,0.4884,2938.0,2937.9,0.4829]
[1764143321972,0.4884,2937.6,2937.5,0.7807]
[1764143322173,0.4884,2937.6,2937.5,0.4829]
[1764143326169,0.2703,2938.0,2937.5,0.7609]
[1764143326369,0.4884,2938.0,2937.9,0.4829]
[1764143326967,0.1968,2938.5,2937.9,0.4829]
[1764143327170,0.1968,2938.5,2938.3,0.4829]
[1764143327171,0.86897868,2938.4,2938.3,0.4829]
[1764143327363,1.35737868,2938.4,2938.3,0.4829]
[1764143327768,1.35737868,2938.4,2938.0,0.278]
[1764143328070,0.4884,2938.1,2938.0,0.7609]
[1764143328264,0.1968,2938.5,2938.0,0.7609]
[1764143328468,1.35719092,2938.4,2938.3,0.4829]
[1764143328678,1.35719092,2938.4,2938.0,0.278]
[1764143328875,0.4884,2938.4,2938.0,0.278]
[1764143329276,0.4884,2938.4,2938.3,0.4829]
[1764143329477,1.35676284,2938.4,2938.3,0.4829]
[1764143330476,0.4884,2938.4,2938.3,0.4829]
[1764143331175,0.91250562,2938.8,2938.3,0.4829]
[1764143331377,0.86824618,2938.7,2938.3,0.4829]
[1764143331677,0.4884,2938.4,2938.3,0.4829]
[1764143332971,0.91250562,2938.9,2938.3,0.4829]
[1764143333277,0.86831862,2938.8,2938.3,0.4829]
[1764143333468,0.86831862,2938.7,2938.3,0.4829]
[1764143333668,1.19200974,2939.0,2938.3,0.4829]
[1764143333872,0.86836997,2938.9,2938.3,0.4829]
[1764143334171,1.35676997,2938.8,2938.7,0.4829]
[1764143334573,1.35676997,2938.8,2938.2,0.63270335]
[1764143334869,0.4884,2938.8,2938.2,0.63270335]
[1764143338285,0.27950412,2939.0,2938.7,0.4829]
[1764143338286,0.00870412,2939.0,2938.7,0.4829]
[1764143338579,0.91250562,2939.9,2939.5,0.7609]
[1764143338881,0.4884,2939.6,2939.5,0.4829]
[1764143339572,0.49241225,2939.6,2939.5,0.48586376]
[1764143339871,0.00401225,2939.6,2939.5,0.76386376]
[1764143340267,0.00510273,2939.8,2939.7,0.4829]
[1764143340577,0.00510273,2939.8,2939.7,1.11560335]
[1764143340970,0.2703,2940.5,2939.7,1.11560335]
[1764143341177,1.35632038,2940.4,2940.3,0.4829]
[1764143341381,0.4884,2940.4,2940.3,0.4829]
[1764143342883,0.00265898,2940.5,2940.4,0.483]
[1764143344481,0.49105898,2940.5,2940.4,0.483]
[1764143346486,0.00265898,2940.5,2940.4,0.483]
[1764143347782,0.00510273,2940.6,2940.5,0.7265]
[1764143347977,0.2703,2941.5,2940.5,0.7265]
[1764143348788,0.27368193,2941.5,2940.5,0.7265]
[1764143348988,0.00510273,2941.3,2940.6,0.63270335]
[1764143349379,0.48190273,2941.3,2941.2,0.4491]
[1764143350486,0.00510273,2941.3,2941.2,0.4491]
[1764143350683,1e-08,2941.3,2941.2,1.08180335]
[1764143352087,0.47680001,2941.3,2941.0,0.28250273]
[1764143352285,0.4768,2941.1,2941.0,0.45420273]
[1764143354686,0.4768,2941.1,2941.0,0.73160273]
[1764143355193,1e-08,2941.3,2941.0,0.73160273]
[1764143356491,0.4768,2941.1,2941.0,0.73160273]
[1764143357190,0.4768,2941.1,2941.0,0.45420273]
[1764143357491,1e-08,2941.3,2941.0,0.73160273]
[1764143358188,0.4768,2941.1,2941.0,0.73160273]
[1764143359292,1e-08,2941.3,2941.0,0.73160273]
[1764143359484,1e-08,2941.3,2941.0,0.28250273]
[1764143362088,0.4768,2941.1,2941.0,0.73160273]
[1764143362404,0.4768,2941.1,2941.0,0.45420273]
[1764143363688,0.4768,2941.1,2941.0,0.00510273]
[1764143367392,1.34302119,2941.1,2941.0,0.00510273]
[1764143368799,2.25552681,2941.1,2941.0,0.00510273]
[1764143368998,1.34302119,2941.1,2941.0,0.00510273]
[1764143369200,1.34302119,2941.1,2941.0,0.45420273]
[1764143369501,1.77872681,2941.1,2941.0,0.73160273]
[1764143370001,2.25552681,2941.1,2941.0,0.73160273]
[1764143370903,1.77872681,2941.1,2941.0,0.73160273]
[1764143371101,0.86622119,2941.1,2941.0,0.73160273]
[1764143371299,1e-08,2941.3,2941.0,1.21523622]
[1764143371503,0.91250562,2941.7,2941.6,0.4491]
[1764143371711,0.91250562,2941.9,2941.8,0.4491]
[1764143371896,1.77760776,2942.0,2941.9,0.4491]
[1764143372098,0.86510214,2942.0,2941.9,0.4491]
[1764143372400,1.38930562,2942.1,2942.0,0.4491]